bitfinex-derivatives/quotes_ETHF0:USTF0_20251107
["timestamp","ask_amount","ask_price","bid_price","bid_amount"]
[1762504548801,9.62856,3343.6,3343.5,0.48926202]
[1762504549203,9.62856,3343.6,3343.5,0.49205764]
[1762504550105,9.1438,3343.6,3343.5,0.49205764]
[1762504550307,9.1438,3343.6,3343.5,0.89295764]
[1762504550308,8.901,3343.6,3343.5,0.89295764]
[1762504550804,3.2078,3343.8,3343.7,0.73505]
[1762504551108,12.1138,3343.8,3343.7,0.73505]
[1762504552113,9.63354,3343.8,3343.7,0.48475]
[1762504552301,0.2428,3343.6,3343.5,0.49204764]
[1762504552502,0.2428,3343.6,3343.5,0.64264764]
[1762504552704,0.2428,3343.6,3343.5,0.89294764]
[1762504553308,0.72756,3343.6,3343.5,0.89294764]
[1762504553504,0.2428,3343.6,3343.5,0.89294764]
[1762504553699,0.48475,3343.7,3343.6,0.48476]
[1762504554300,8.906,3343.8,3343.7,0.48475]
[1762504555408,9.1488,3343.8,3343.7,0.48475]
[1762504555609,9.63354,3343.8,3343.7,0.48475]
[1762504555808,9.1488,3343.8,3343.7,0.48475]
[1762504556004,0.72756,3343.6,3343.5,0.00727764]
[1762504559009,3.2078,3343.9,3343.8,0.48474]
[1762504559201,3.4506,3344.3,3343.6,3.2078]
[1762504559405,0.4847,3344.1,3343.9,0.48472]
[1762504559611,0.2428,3344.0,3343.9,0.48472]
[1762504559805,7.402,3344.2,3343.5,0.15787764]
[1762504559806,0.2428,3343.6,3343.5,0.15787764]
[1762504560010,9.1478,3343.6,3343.5,0.15787764]
[1762504560208,9.63257,3343.6,3343.5,0.00727764]
[1762504561602,9.63256,3343.6,3343.5,0.15787764]
[1762504562418,9.63256,3343.6,3343.5,0.00727764]
[1762504562605,10.3710035,3343.6,3343.5,0.00727764]
[1762504562810,14.13959937,3343.6,3343.5,0.00727764]
[1762504563011,4.49615587,3343.6,3343.5,0.00727764]
[1762504563210,13.41115587,3343.6,3343.5,0.00727764]
[1762504565110,9.64256,3343.6,3343.5,0.00727764]
[1762504565307,0.72766,3342.9,3342.8,3.2078]
[1762504565610,0.72772,3342.5,3342.4,3.2078]
[1762504565812,9.70522,3342.5,3342.4,3.2078]
[1762504566020,9.70522,3342.5,3342.0,3.2078]
[1762504566021,0.2428,3342.1,3342.0,3.2078]
[1762504566221,9.1708,3342.1,3342.0,3.2078]
[1762504566517,9.17341262,3342.1,3342.0,3.21126303]
[1762504567118,9.17341262,3342.1,3342.0,3.69625303]
[1762504567316,9.17341262,3342.1,3342.0,3.84685303]
[1762504567517,9.17341262,3342.1,3342.0,3.36186303]
[1762504567718,9.17341262,3342.1,3342.0,3.84685303]
[1762504568916,9.65839262,3342.1,3342.0,3.36186303]
[1762504569119,9.17341262,3342.1,3342.0,3.84686303]
[1762504571009,0.00261262,3342.1,3342.0,4.07746303]
[1762504571211,3.57461262,3342.1,3342.0,4.07746303]
[1762504571410,3.57461262,3342.1,3342.0,0.86966303]
[1762504571911,0.00261262,3342.1,3342.0,0.86966303]
[1762504572114,7.94961262,3342.1,3342.0,0.15406303]
[1762504572412,8.43459262,3342.1,3342.0,0.15406303]
[1762504572613,8.43459262,3342.1,3342.0,0.00346303]
[1762504573215,8.43459262,3342.1,3342.0,0.48846303]
[1762504573920,7.94961262,3342.1,3342.0,0.48846303]
[1762504574517,7.94961262,3342.1,3342.0,0.62906303]
[1762504574717,7.70661262,3342.1,3342.0,0.85966303]
[1762504576216,8.19159262,3342.1,3342.0,0.85966303]
[1762504576723,7.70661262,3342.1,3342.0,0.85966303]
[1762504578024,7.94961262,3342.1,3342.0,0.62906303]
[1762504578416,8.19159262,3342.1,3342.0,0.85966303]
[1762504578625,8.43459262,3342.1,3342.0,0.00346303]
[1762504578922,11.64239262,3342.1,3342.0,0.00346303]
[1762504580221,11.64239262,3342.1,3342.0,0.48846303]
[1762504580717,11.64239262,3342.1,3342.0,0.00346303]
[1762504580920,11.15741262,3342.1,3342.0,0.48845303]
[1762504581123,11.64239262,3342.1,3342.0,0.48845303]
[1762504581324,11.64239262,3342.1,3342.0,0.00346303]
[1762504581918,11.15741262,3342.1,3342.0,0.48846303]
[1762504582826,11.64239262,3342.1,3342.0,0.00346303]
[1762504583029,11.64239262,3342.1,3342.0,0.48846303]
[1762504583728,11.64239262,3342.1,3342.0,0.00346303]
[1762504584329,11.64239262,3342.1,3342.0,0.48846303]
[1762504586221,11.64239262,3342.1,3342.0,0.62906303]
[1762504587421,7.94961262,3342.1,3342.0,0.62906303]
[1762504588126,8.43459262,3342.1,3342.0,0.62906303]
[1762504588321,8.43459262,3342.1,3342.0,0.14406303]
[1762504588828,0.00261262,3342.1,3342.0,0.85965303]
[1762504589028,0.24561262,3342.1,3342.0,0.14406303]
[1762504589224,0.73059262,3342.1,3342.0,0.00346303]
[1762504589430,0.73059262,3342.1,3342.0,0.14406303]
[1762504590318,0.73059262,3342.1,3342.0,0.00346303]
[1762504590522,3.93839262,3342.1,3342.0,0.00346303]
[1762504591322,0.24561262,3342.1,3342.0,0.48845303]
[1762504591527,0.24561262,3342.1,3342.0,0.85965303]
[1762504591528,0.00261262,3342.1,3342.0,0.85965303]
[1762504592729,0.24561262,3342.1,3342.0,0.62905303]
[1762504593029,0.24561262,3342.1,3342.0,0.85965303]
[1762504593222,0.00261262,3342.1,3342.0,0.85965303]
[1762504594930,0.24561262,3342.1,3342.0,0.85965303]
[1762504595135,3.93839262,3342.1,3342.0,0.14406303]
[1762504595429,4.67952246,3342.1,3342.0,0.00346303]
[1762504598435,1.47172246,3342.1,3342.0,0.00346303]
[1762504603842,5.24031833,3342.1,3342.0,0.00346303]
[1762504604539,8.44811833,3342.1,3342.0,0.00346303]
[1762504605039,16.87413833,3342.1,3342.0,0.87056303]
[1762504605736,13.66633833,3342.1,3342.0,0.87056303]
[1762504606540,0.00261262,3342.1,3342.0,0.87056303]
[1762504606738,0.00448202,3342.4,3342.3,0.72535]
[1762504606931,0.00448202,3342.4,3342.3,3.93315]
[1762504607839,0.00722086,3342.4,3342.3,3.93315]
[1762504608641,0.26052086,3342.4,3342.3,3.93315]
[1762504608844,0.74546086,3342.4,3342.3,3.2078]
[1762504609137,0.49216086,3342.4,3342.3,3.4482]
[1762504609344,0.00722086,3342.4,3342.3,3.93315]
[1762504612242,0.74546086,3342.4,3342.3,3.2078]
[1762504613444,0.00722086,3342.4,3342.3,3.93315]
[1762504614339,8.93022086,3342.4,3342.3,3.93315]
[1762504616246,0.00722086,3342.4,3342.3,3.93315]
[1762504616447,8.92922086,3342.4,3342.3,3.93315]
[1762504617633,0.00722086,3342.4,3342.3,3.93315]
[1762504620753,0.26052086,3342.4,3342.1,0.48497]
[1762504621048,0.73827,3342.2,3342.1,0.48497]
[1762504621349,9.65027,3342.2,3342.1,0.48497]
[1762504621951,0.73828,3342.1,3342.0,0.14516303]
[1762504622246,0.73828,3342.1,3342.0,0.00346303]
[1762504624051,9.1663,3342.1,3342.0,0.14516303]
[1762504624250,9.65128,3342.1,3342.0,0.14516303]
[1762504625151,9.1663,3342.1,3342.0,0.63016303]
[1762504625848,8.913,3342.1,3342.0,0.87056303]
[1762504626047,3.69275,3342.3,3342.2,0.48496]
[1762504626350,3.2078,3342.3,3342.2,0.72536]
[1762504626552,10.6458,3342.3,3342.2,0.72536]
[1762504627045,7.438,3342.3,3342.2,0.72536]
[1762504627250,7.6913,3342.3,3342.2,0.48496]
[1762504627647,7.438,3342.3,3342.2,0.72536]
[1762504628846,0.00722086,3342.4,3342.3,0.72535]
[1762504629951,0.74246086,3342.4,3342.3,0.48495]
[1762504630749,0.25752086,3342.4,3342.3,0.72415]
[1762504631052,0.00722086,3342.4,3342.3,0.72415]
[1762504633753,0.00722086,3342.4,3342.3,3.93195]
[1762504634447,0.00273884,3342.4,3342.3,3.93195]
[1762504634649,0.60248958,3343.0,3342.9,0.72406]
[1762504634848,12.60059,3343.5,3343.4,0.2392]
[1762504635052,12.3661,3343.5,3343.4,0.72399]
[1762504635353,12.1158,3343.5,3343.4,0.72399]
[1762504635551,12.11865498,3343.5,3343.4,0.72399]
[1762504635852,3.21065498,3343.5,3343.4,0.72399]
[1762504637555,0.00285498,3343.5,3343.4,0.72399]
[1762504638348,0.2503,3343.1,3342.6,3.2078]
[1762504638553,0.73519,3342.7,3342.6,3.6927]
[1762504638852,3.2078,3343.1,3342.7,0.72409]
[1762504639154,9.40386,3343.0,3342.8,0.48488]
[1762504639345,8.919,3343.0,3342.9,0.72406]
[1762504640252,3.2078,3343.1,3343.0,0.87135]
[1762504640457,12.1258,3343.1,3343.0,0.87135]
[1762504640647,3.2078,3343.1,3343.0,0.87135]
[1762504641360,0.48486,3343.0,3342.7,0.48489]
[1762504641857,3.2078,3343.1,3342.6,3.2078]
[1762504642159,0.48489,3342.7,3342.6,3.9319]
[1762504642461,8.92,3342.9,3342.7,0.48489]
[1762504642662,9.40487,3342.9,3342.7,0.48489]
[1762504642853,0.48488,3342.8,3342.7,0.2392]
[1762504644060,0.73518,3342.8,3342.7,0.72409]
[1762504644262,8.92,3342.9,3342.8,0.72408]
[1762504644463,3.2078,3343.1,3343.0,0.87135]
[1762504644755,0.48486,3343.0,3342.6,3.2078]
[1762504645064,8.3603,3342.9,3342.8,0.48488]
[1762504645261,8.3603,3342.9,3342.7,0.48489]
[1762504645463,8.84517,3342.9,3342.7,0.48489]
[1762504645761,0.73518,3342.8,3342.7,0.48489]
[1762504646562,0.2503,3342.8,3342.7,0.48489]
[1762504647063,0.2503,3342.8,3342.6,3.2078]
[1762504647064,0.73518,3342.8,3342.6,3.2078]
[1762504647259,0.73519,3342.7,3342.6,3.2078]
[1762504648164,0.73519,3342.7,3342.6,3.69271]
[1762504648565,0.2503,3342.7,3342.6,3.69271]
[1762504648865,0.73519,3342.7,3342.6,3.2078]
[1762504649062,0.2503,3342.7,3342.6,3.69271]
[1762504649263,0.48488,3342.8,3342.7,0.48489]
[1762504649460,8.11,3342.9,3342.8,0.72408]
[1762504650166,3.2078,3343.1,3342.6,3.2078]
[1762504650167,3.2078,3343.1,3343.0,0.87135]
[1762504650755,4.25338587,3343.4,3343.3,0.48479]
[1762504650756,0.48479,3343.4,3343.3,0.48479]
[1762504651067,9.39579,3343.4,3343.3,0.2392]
[1762504651367,9.64609,3343.4,3343.3,0.72401]
[1762504651567,0.48482,3343.2,3343.1,0.2392]
[1762504651964,0.73513,3343.1,3343.0,0.1473]
[1762504652469,0.2503,3343.1,3343.0,0.63214]
[1762504652665,8.911,3343.4,3343.1,0.48483]
[1762504652871,9.39579,3343.4,3343.2,0.48481]
[1762504653167,0.48481,3343.3,3343.2,0.48481]
[1762504653766,0.73512,3343.2,3343.1,0.48483]
[1762504654773,0.48488,3342.8,3342.6,3.2078]
[1762504654973,0.73519,3342.7,3342.5,0.1473]
[1762504655176,8.907,3343.0,3342.8,0.48487]
[1762504655177,0.2503,3342.9,3342.8,0.48487]
[1762504655672,0.2503,3342.8,3342.5,0.1473]
[1762504655869,0.73518,3342.8,3342.5,0.1473]
[1762504656066,0.73518,3342.8,3342.6,0.48491]
[1762504656267,0.73518,3342.8,3342.7,0.48489]
[1762504656470,0.2503,3342.8,3342.7,0.48489]
[1762504656975,0.2503,3342.8,3342.6,0.48491]
[1762504657273,0.48488,3342.8,3342.7,0.48489]
[1762504658474,0.73516,3342.9,3342.8,0.48488]
[1762504658675,0.73516,3342.9,3342.8,0.71398]
[1762504658969,0.48489,3342.7,3342.6,0.4849]
[1762504659273,0.7268,3342.7,3342.6,0.4849]
[1762504659473,0.2419,3342.3,3342.2,0.48497]
[1762504659680,9.62685,3342.3,3342.2,0.48497]
[1762504660477,9.1419,3342.3,3342.2,0.48497]
[1762504661278,9.1419,3342.3,3342.2,0.73127]
[1762504661468,8.9,3342.3,3342.2,0.73127]
[1762504664677,8.9,3342.3,3342.0,3.35296303]
[1762504664678,9.1419,3342.3,3342.0,3.35296303]
[1762504664980,0.72688,3342.1,3342.0,0.00346303]
[1762504666777,0.72692,3341.8,3341.7,0.00448202]
[1762504667076,9.62692,3341.8,3341.7,0.00448202]
[1762504667784,9.62692,3341.8,3341.7,0.00684057]
[1762504668277,0.48947202,3342.1,3341.7,0.25314057]
[1762504668478,8.00599,3342.0,3341.8,0.48502]
[1762504668678,0.2419,3341.9,3341.8,0.48502]
[1762504668879,0.72691,3341.9,3341.8,0.48502]
[1762504669080,0.2419,3341.8,3341.7,0.00684057]
[1762504669289,0.2419,3341.8,3341.7,0.49188057]
[1762504669679,0.72692,3341.8,3341.7,0.49188057]
[1762504669886,0.72692,3341.8,3341.7,0.00684057]
[1762504671378,3.93472,3341.8,3341.7,0.00684057]
[1762504671686,0.2419,3340.9,3340.5,0.63301]
[1762504671985,8.902,3340.8,3340.7,0.73148]
[1762504672185,8.902,3340.8,3340.7,0.2463]
[1762504672586,9.39055805,3340.8,3340.7,0.24946931]
[1762504672783,9.14728805,3340.8,3340.7,0.73464931]
[1762504673086,9.14728805,3340.8,3340.7,0.24946931]
[1762504673584,9.14728805,3340.8,3340.7,0.73464931]
[1762504673779,9.63245805,3340.8,3340.7,0.00316931]
[1762504673984,9.63245805,3340.8,3340.7,0.48834931]
[1762504674383,9.63245805,3340.8,3340.7,0.00316931]
[1762504674787,9.14728805,3340.8,3340.7,0.00316931]
[1762504675080,9.63245805,3340.8,3340.7,0.00316931]
[1762504680986,0.2419,3339.7,3339.6,3.2078]
[1762504681183,12.1048,3339.7,3338.8,3.2078]
[1762504681390,0.0724,3340.5,3339.5,0.63315]
[1762504681391,8.906,3339.6,3339.5,0.63315]
[1762504681582,3.2078,3340.3,3339.6,0.48534]
[1762504681788,0.48531,3339.9,3339.6,0.00255662]
[1762504682092,0.72723,3339.7,3339.6,0.00255662]
[1762504682683,0.2419,3339.7,3339.6,0.00255662]
[1762504682885,0.2419,3339.7,3339.6,0.48789662]
[1762504683791,3.887,3339.8,3339.7,0.48533]
[1762504683993,4.1289,3339.8,3339.7,0.48533]
[1762504684189,0.2419,3339.7,3339.6,0.00255662]
[1762504684485,0.2419,3339.7,3339.6,0.48789662]
[1762504684885,0.72723,3339.7,3339.6,0.00255662]
[1762504685091,0.2419,3339.7,3339.6,0.48789662]
[1762504685288,0.72723,3339.7,3339.6,0.00255662]
[1762504686886,0.2419,3338.9,3338.5,0.1478]
[1762504687087,0.2419,3338.8,3338.7,0.48546]
[1762504687487,0.2419,3339.2,3339.0,0.1478]
[1762504687687,0.2419,3339.2,3339.1,0.48541]
[1762504687888,0.2419,3338.9,3338.8,3.2078]
[1762504688089,0.2419,3338.9,3338.8,3.69564529]
[1762504688388,3.498,3339.4,3339.3,0.48538]
[1762504688894,4.23407,3339.4,3339.1,0.4854]
[1762504689092,0.2507,3339.2,3339.1,0.4854]
[1762504690898,0.2507,3339.2,3339.1,0.7349]
[1762504691491,3.7487,3339.4,3339.3,0.48539]
[1762504693499,3.76859587,3339.9,3339.8,0.48531]
[1762504693698,2.74194259,3341.5,3340.2,0.73475]
[1762504693699,0.48855805,3340.8,3340.2,0.73475]
[1762504693891,0.81147853,3340.7,3340.2,0.73475]
[1762504694094,0.48521,3340.5,3340.2,0.2495]
[1762504694305,0.48521,3340.5,3340.2,0.73475]
[1762504694497,0.73597,3340.1,3340.0,3.2078]
[1762504694700,0.2507,3340.1,3340.0,3.69308]
[1762504694912,0.2507,3340.1,3340.0,3.84348]
[1762504695302,0.2507,3340.1,3340.0,3.3582]
[1762504695506,0.2507,3340.1,3340.0,3.84348]
[1762504696108,0.255189,3340.3,3340.2,0.48525]
[1762504696508,0.004489,3340.3,3340.2,0.73475]
[1762504698108,0.255189,3340.3,3340.2,0.73475]
[1762504698307,0.004489,3340.3,3340.1,0.48527]
[1762504698610,0.004489,3340.3,3340.2,0.73476]
[1762504698809,0.004489,3340.3,3340.2,0.2495]
[1762504699010,0.255189,3340.3,3340.0,0.63568]
[1762504699210,0.48526,3340.2,3340.0,0.63568]
[1762504699407,0.48527,3340.1,3340.0,0.1504]
[1762504699809,0.489739,3340.3,3340.1,0.48527]
[1762504700210,0.48526,3340.2,3340.0,0.1504]
[1762504700404,0.2507,3339.7,3339.6,3.2078]
[1762504700605,0.48534,3339.6,3339.5,0.1504]
[1762504700812,0.73604,3339.6,3339.5,0.1504]
[1762504701109,3.2078,3340.0,3339.2,0.4854]
[1762504701110,0.48537,3339.4,3339.2,0.4854]
[1762504701304,0.48536,3339.5,3339.4,0.48537]
[1762504701499,0.48538,3339.4,3339.1,0.48541]
[1762504701805,3.2078,3339.6,3338.8,3.21018529]
[1762504702008,0.48538,3339.4,3339.0,0.63582]
[1762504702210,0.73614,3338.9,3338.8,0.00238529]
[1762504702617,0.2507,3338.9,3338.8,0.00238529]
[1762504703007,0.73614,3338.9,3338.8,0.00238529]
[1762504704413,12.1378,3339.1,3338.8,0.00238529]
[1762504704414,3.2078,3339.1,3339.0,0.88533]
[1762504704912,0.48537,3339.4,3339.2,0.4854]
[1762504705113,0.48539,3339.3,3339.0,0.1504]
[1762504705303,0.4854,3339.2,3339.1,0.2495]
[1762504706109,0.73612,3339.1,3339.0,0.1504]
[1762504706910,3.2078,3339.5,3339.0,0.1504]
[1762504707112,1.06108179,3339.4,3339.0,0.1504]
[1762504707310,3.2078,3339.5,3339.0,0.1504]
[1762504707311,0.73364794,3339.3,3339.0,0.1504]
[1762504707512,0.48541,3339.1,3339.0,0.1504]
[1762504708515,0.73611,3339.1,3339.0,0.1504]
[1762504708713,0.73614,3338.9,3338.8,0.00238529]
[1762504709817,1.47028141,3338.9,3338.8,0.00238529]
[1762504710612,1.79781583,3338.9,3338.8,0.00238529]
[1762504711507,0.48558,3338.0,3337.6,3.2078]
[1762504712016,0.48558,3338.0,3337.7,0.48562]
[1762504712205,0.48559,3337.9,3337.7,0.48562]
[1762504712519,0.48797662,3337.9,3337.7,0.48940641]
[1762504712819,0.00238662,3337.9,3337.8,0.4856]
[1762504713408,0.00238662,3337.9,3337.8,0.7351]
[1762504714414,0.004489,3338.1,3338.0,0.48557]
[1762504714615,0.004489,3338.1,3338.0,12.09327]
[1762504714917,3.2078,3338.7,3338.6,0.73499]
[1762504715118,8.93,3338.8,3338.7,0.73497]
[1762504715421,8.93,3338.8,3338.6,0.48548]
[1762504715618,8.9323344,3338.8,3338.5,0.88539]
[1762504715915,0.48549,3338.6,3338.5,0.1504]
[1762504716114,0.73621,3338.5,3338.3,0.004489]
[1762504716415,0.73621,3338.5,3338.4,0.48552]
[1762504716619,0.48552,3338.4,3338.3,0.253989]
[1762504717119,0.73622,3338.4,3338.3,0.004489]
[1762504719518,4.43708756,3338.4,3338.3,0.004489]
[1762504720118,5.16943892,3338.4,3338.3,0.004489]
[1762504721217,0.2432,3337.8,3337.7,0.00378641]
[1762504721512,9.1902,3337.8,3337.7,0.00378641]
[1762504721715,9.6758,3337.8,3337.7,0.00378641]
[1762504722825,9.1902,3337.8,3337.7,0.48940641]
[1762504723414,9.6758,3337.8,3337.7,0.00378641]
[1762504723618,9.1902,3337.8,3337.7,0.48940641]
[1762504724017,9.6758,3337.8,3337.7,0.00378641]
[1762504724218,8.947,3337.8,3337.7,0.73510641]
[1762504724820,12.1598,3338.3,3338.2,0.2457]
[1762504725022,12.1598,3338.3,3338.1,0.48556]
[1762504725325,12.1598,3338.3,3338.2,0.2457]
[1762504725623,8.952,3338.3,3338.2,0.73125]
[1762504726023,3.70086756,3338.4,3338.3,0.48553]
[1762504726320,8.958,3338.4,3338.3,0.48552]
[1762504726522,0.004489,3339.0,3338.7,0.73117]
[1762504726818,0.971489,3339.0,3338.7,0.73117]
[1762504727024,0.004489,3339.0,3338.7,0.73117]
[1762504728715,0.4877944,3338.8,3338.7,0.2457]
[1762504728916,0.0023344,3338.8,3338.0,0.1404]
[1762504729218,0.48555,3338.2,3338.0,0.62597]
[1762504729418,0.48555,3338.2,3338.1,0.73126]
[1762504729618,3.2101344,3338.8,3338.3,0.2457]
[1762504729815,0.48552,3338.4,3338.3,0.2457]
[1762504730227,0.48555,3338.2,3338.0,0.62597]
[1762504730428,3.2078,3338.4,3338.0,0.1404]
[1762504730628,0.48556,3338.1,3338.0,0.1404]
[1762504730826,0.4856,3337.8,3337.7,0.00378641]
[1762504733532,0.4856,3337.8,3337.7,0.48940641]
[1762504733831,0.4856,3337.8,3337.7,0.00378641]
[1762504734228,0.4856,3337.8,3337.7,0.24948641]
[1762504735122,0.48559,3337.9,3337.8,0.4856]
[1762504736532,0.2432,3338.1,3337.7,0.00378641]
[1762504736733,8.962,3338.2,3337.8,0.4856]
[1762504737029,8.962,3338.2,3337.7,0.00378641]
[1762504737030,8.962,3338.2,3338.1,0.2457]
[1762504737231,9.44754,3338.2,3338.1,0.2457]
[1762504737430,0.48556,3338.1,3338.0,0.1404]
[1762504738832,8.962,3338.2,3338.0,0.1404]
[1762504739833,9.44754,3338.2,3338.1,0.48556]
[1762504740330,9.44754,3338.2,3338.0,0.1404]
[1762504740525,9.44754,3338.2,3337.6,3.2078]
[1762504740526,0.72882,3337.7,3337.6,3.2078]
[1762504740721,0.48559,3338.0,3337.6,0.2457]
[1762504740927,9.44659,3337.9,3337.8,0.2457]
[1762504741121,9.44659,3337.9,3337.7,0.48561]
[1762504741122,9.68979,3337.9,3337.7,0.48561]
[1762504741327,9.68979,3337.9,3337.8,0.4856]
[1762504741528,0.2432,3337.9,3337.8,0.4890634]
[1762504741734,5.544,3338.0,3337.9,0.48559]
[1762504741931,6.02957,3338.0,3337.8,0.4890634]
[1762504742131,5.544,3338.0,3337.9,0.48559]
[1762504742626,0.48559,3337.9,3337.8,0.0034634]
[1762504742823,5.544,3338.0,3337.9,0.48559]
[1762504743630,0.48555,3338.2,3338.0,0.1404]
[1762504743934,9.69276,3338.1,3338.0,0.62597]
[1762504744135,9.69276,3338.1,3338.0,0.1404]
[1762504744334,9.69276,3338.1,3338.0,0.62597]
[1762504745222,9.69276,3338.1,3338.0,0.1404]
[1762504745428,9.2072,3338.1,3338.0,0.1404]
[1762504745631,9.2072,3338.1,3338.0,0.62597]
[1762504746934,9.69276,3338.1,3338.0,0.62597]
[1762504748538,9.69276,3338.1,3338.0,0.1404]
[1762504748839,9.2072,3338.1,3338.0,0.62597]
[1762504749226,9.69276,3338.1,3338.0,0.62597]
[1762504750036,8.964,3338.1,3338.0,0.87137]
[1762504750439,9.68416,3338.1,3337.8,0.4890534]
[1762504750737,0.2346,3337.9,3337.8,0.4890534]
[1762504751442,0.2346,3337.9,3337.8,0.7344534]
[1762504751738,0.72019,3337.9,3337.8,0.7344534]
[1762504752140,0.72019,3337.9,3337.8,0.4890534]
[1762504752633,0.72019,3337.9,3337.8,0.0034634]
[1762504758235,1.45460614,3337.9,3337.8,0.0034634]
[1762504758441,10.39060614,3337.9,3337.8,0.0034634]
[1762504759536,0.96901614,3337.9,3337.8,0.0034634]
[1762504759740,9.1706,3337.9,3337.8,0.7344634]
[1762504759941,3.70086756,3338.0,3337.9,0.73099]
[1762504760241,3.2078,3338.1,3338.0,0.86987]
[1762504760442,3.4424,3338.1,3338.0,0.86987]
[1762504760647,3.4424,3338.1,3338.0,0.62447]
[1762504760842,3.92796,3338.1,3338.0,0.62447]
[1762504761346,3.2078,3338.1,3338.0,0.86987]
[1762504761950,3.4424,3338.1,3338.0,0.86987]
[1762504762244,0.2346,3337.9,3337.8,0.0034634]
[1762504762442,9.1906,3337.9,3337.8,0.4890634]
[1762504763948,9.67619,3337.9,3337.8,0.0034634]
[1762504764246,10.40983685,3337.9,3337.8,0.0034634]
[1762504768552,1.45383685,3337.9,3337.8,0.0034634]
[1762504768852,10.39983685,3337.9,3337.8,0.0034634]
[1762504770348,0.7203,3337.1,3337.0,0.1504]
[1762504770645,9.6643,3337.1,3337.0,0.1504]
[1762504771251,9.6643,3337.1,3337.0,0.15388523]
[1762504772346,9.6643,3337.1,3336.4,3.2078]
[1762504772347,0.72039,3336.5,3336.4,3.2078]
[1762504772552,9.66339,3336.5,3336.4,3.2078]
[1762504772743,0.2346,3336.1,3336.0,3.3467]
[1762504772942,9.1786,3336.1,3336.0,3.5921]
[1762504773142,0.0044958,3336.8,3336.0,3.3467]
[1762504773347,0.48581,3336.4,3336.0,4.08077807]
[1762504773551,5.326,3336.3,3336.1,0.48585]
[1762504773746,3.2078,3336.6,3336.0,3.34951807]
[1762504773952,0.49345798,3336.8,3336.5,0.1389]
[1762504774146,0.2346,3336.1,3336.0,3.34951807]
[1762504774454,0.00770798,3336.8,3336.7,0.73116]
[1762504775150,0.00770798,3336.8,3336.7,0.2454]
[1762504775355,0.24230798,3336.8,3336.5,0.1389]
[1762504775564,0.2346,3336.6,3336.5,0.1389]
[1762504776148,0.72038,3336.6,3336.5,0.1389]
[1762504776348,0.2346,3336.4,3336.3,0.48582]
[1762504776550,0.2346,3336.4,3336.0,3.34951807]
[1762504776747,8.954,3336.6,3336.0,3.34951807]
[1762504776952,0.2346,3336.1,3336.0,3.34951807]
[1762504777155,9.1906,3336.1,3336.0,3.34951807]
[1762504777553,9.67645,3336.1,3336.0,3.34951807]
[1762504777752,9.67645,3336.1,3336.0,0.14171807]
[1762504778759,9.67645,3336.1,3336.0,0.00281807]
[1762504779149,0.2363,3335.7,3335.6,3.2078]
[1762504779347,0.3642,3335.5,3335.2,3.2078]
[1762504779550,0.48597,3335.3,3335.0,0.372]
[1762504779759,3.2078,3335.1,3335.0,0.372]
[1762504779962,8.4408,3335.1,3335.0,0.372]
[1762504780262,3.2078,3335.1,3335.0,0.37533814]
[1762504780648,3.2078,3335.6,3335.5,0.85794]
[1762504781958,3.2078,3336.0,3335.9,0.2336]
[1762504782157,3.2078,3336.0,3335.5,0.1384]
[1762504782461,3.2078,3336.0,3335.9,0.2336]
[1762504784964,0.48588,3335.9,3335.6,0.48592]
[1762504785159,0.4859,3335.8,3335.5,0.1384]
[1762504785362,0.48591,3335.7,3335.5,0.1384]
[1762504785567,3.2078,3335.6,3335.5,0.1384]
[1762504785755,3.2078,3335.6,3335.5,0.372]
[1762504785961,7.538,3336.1,3336.0,0.1384]
[1762504786161,8.966,3336.1,3336.0,0.1384]
[1762504786767,3.2078,3336.2,3336.1,0.2336]
[1762504787061,3.2078,3336.6,3336.5,0.372]
[1762504787768,3.2078,3336.6,3336.5,0.85779]
[1762504788166,3.69358,3336.6,3336.5,0.372]
[1762504788371,3.2078,3336.6,3336.5,0.372]
[1762504788969,3.69358,3336.6,3336.5,0.372]
[1762504789265,3.2078,3336.6,3336.5,0.85779]
[1762504789573,8.968,3336.7,3336.6,0.71938]
[1762504791575,9.45376,3336.7,3336.6,0.2336]
[1762504792972,0.48578,3336.6,3336.5,0.1384]
[1762504793169,3.69358,3336.6,3336.5,0.1384]
[1762504795475,3.2078,3336.6,3336.5,0.85779]
[1762504795870,5.193,3336.7,3336.6,0.71938]
[1762504796573,0.00770798,3336.8,3336.7,0.71936]
[1762504797071,3.10116648,3337.0,3336.9,0.71933]
[1762504797279,2.45245666,3337.0,3336.9,0.71933]
[1762504798182,2.45614869,3337.0,3336.9,0.71933]
[1762504798772,0.00369203,3337.0,3336.9,0.71933]
[1762504800183,0.4856,3337.8,3337.7,0.7192]
[1762504800375,3.2078,3337.9,3337.5,0.62404]
[1762504800376,0.48563,3337.7,3337.5,0.62404]
[1762504800582,0.48563,3337.6,3337.5,0.1384]
[1762504801683,0.48798061,3337.6,3337.5,0.14123222]
[1762504803389,0.48798061,3337.6,3337.5,0.37483222]
[1762504803585,9.45198061,3337.6,3337.5,0.14123222]
[1762504805493,0.48571,3337.1,3337.0,0.1384]
[1762504805789,3.69351,3337.1,3337.0,0.1384]
[1762504806182,3.2078,3337.1,3337.0,0.85772]
[1762504806392,3.2078,3337.1,3337.0,0.86026785]
[1762504807693,3.69351,3337.1,3337.0,0.37454785]
[1762504807996,3.69351,3337.1,3337.0,0.14094785]
[1762504812389,3.69351,3337.1,3337.0,0.37534785]
[1762504812693,3.69351,3337.1,3337.0,0.14094785]
[1762504814486,3.69351,3337.1,3337.0,0.37534785]
[1762504814686,12.65151,3337.1,3337.0,0.14094785]
[1762504815996,13.39562967,3337.1,3337.0,0.14094785]
[1762504816694,0.48578,3336.6,3336.5,0.1384]
[1762504816902,12.65358,3336.6,3336.5,0.1384]
[1762504817096,0.48585,3336.1,3335.5,0.1384]
[1762504817399,12.65365,3336.1,3335.5,0.1384]
[1762504817604,12.65365,3336.1,3336.0,0.14177595]